[Event "Live Chess"]
[Site "Chess.com"]
[Date "2023.05.21"]
[Round "-"]
[White "Mikhail_Golubev"]
[Black "BJAW87"]
[Result "1-0"]
[WhiteElo "2444"]
[BlackElo "1460"]
[TimeControl "300"]
[EndTime "7:59:19 PDT"]
[Termination "Mikhail_Golubev won by checkmate"]

1. Na3 {[%clk 0:04:54.6]} 1... e5 {[%clk 0:04:57.5]} 2. c3 {[%clk 0:04:53.8]}
2... Bxa3 {[%clk 0:04:55.2]} 3. bxa3 {[%clk 0:04:52.3]} 3... Nf6 {[%clk
0:04:53.7]} 4. d4 {[%clk 0:04:51.1]} 4... exd4 {[%clk 0:04:27.8]} 5. cxd4 {[%clk
0:04:50]} 5... O-O {[%clk 0:04:26.4]} 6. g3 {[%clk 0:04:44.1]} 6... d5 {[%clk
0:04:24.7]} 7. Bg2 {[%clk 0:04:43.1]} 7... Re8 {[%clk 0:04:06.3]} 8. Nf3 {[%clk
0:04:41.5]} 8... Bg4 {[%clk 0:03:57.2]} 9. O-O {[%clk 0:04:38.4]} 9... c6 {[%clk
0:03:55.2]} 10. h3 {[%clk 0:04:34.4]} 10... Bh5 {[%clk 0:03:53.2]} 11. g4 {[%clk
0:04:33.1]} 11... Bg6 {[%clk 0:03:50.7]} 12. Ne5 {[%clk 0:04:32.1]} 12... Nbd7
{[%clk 0:03:07.6]} 13. Nxg6 {[%clk 0:04:30.1]} 13... hxg6 {[%clk 0:03:05.8]} 14.
Bf4 {[%clk 0:04:24.6]} 14... Qa5 {[%clk 0:02:55.4]} 15. Qb3 {[%clk 0:04:12.8]}
15... Qb6 {[%clk 0:02:50.2]} 16. e3 {[%clk 0:04:07.2]} 16... Ne4 {[%clk
0:02:47.3]} 17. Qc2 {[%clk 0:04:02.3]} 17... Ndf6 {[%clk 0:02:42.1]} 18. Rab1
{[%clk 0:03:58.3]} 18... Qa6 {[%clk 0:02:30.6]} 19. f3 {[%clk 0:03:51.9]} 19...
Qxa3 {[%clk 0:02:08.1]} 20. fxe4 {[%clk 0:03:49.3]} 20... Nxe4 {[%clk
0:02:04.5]} 21. Bxe4 {[%clk 0:03:44.7]} 21... Rxe4 {[%clk 0:02:02.8]} 22. Rxb7
{[%clk 0:03:40.8]} 22... Rxf4 {[%clk 0:01:50.8]} 23. exf4 {[%clk 0:03:38.1]}
23... Qxh3 {[%clk 0:01:50.1]} 24. Qg2 {[%clk 0:03:25.4]} 24... Qe3+ {[%clk
0:01:48.7]} 25. Qf2 {[%clk 0:03:22.1]} 25... Qh3 {[%clk 0:01:42.2]} 26. Qf3
{[%clk 0:03:19]} 26... Qh4 {[%clk 0:01:29.7]} 27. g5 {[%clk 0:03:00.3]} 27... a5
{[%clk 0:01:12.1]} 28. Kg2 {[%clk 0:02:56.7]} 28... Re8 {[%clk 0:01:03.2]} 29.
Rh1 {[%clk 0:02:46.4]} 29... Qe1 {[%clk 0:01:00.7]} 30. Rxe1 {[%clk 0:02:43.4]}
30... Rxe1 {[%clk 0:01:00.6]} 31. Rb8+ {[%clk 0:02:42.4]} 31... Kh7 {[%clk
0:00:59.7]} 32. Qh3# {[%clk 0:02:41.2]} 1-0

[Event "Live Chess"]
[Site "Chess.com"]
[Date "2023.05.21"]
[Round "-"]
[White "lateforthesky"]
[Black "PantherCal"]
[Result "1-0"]
[WhiteElo "2095"]
[BlackElo "1856"]
[TimeControl "300"]
[EndTime "7:59:29 PDT"]
[Termination "lateforthesky won by resignation"]

1. e4 {[%clk 0:04:58.3]} 1... d5 {[%clk 0:04:58.7]} 2. exd5 {[%clk 0:04:56.5]}
2... Qxd5 {[%clk 0:04:58.6]} 3. Nc3 {[%clk 0:04:53.9]} 3... Qd8 {[%clk
0:04:58.5]} 4. Nf3 {[%clk 0:04:51.4]} 4... Nf6 {[%clk 0:04:58.4]} 5. Bc4 {[%clk
0:04:50.1]} 5... g6 {[%clk 0:04:58.3]} 6. Ne5 {[%clk 0:04:44.3]} 6... e6 {[%clk
0:04:55.5]} 7. d4 {[%clk 0:04:42.5]} 7... Bg7 {[%clk 0:04:53.6]} 8. O-O {[%clk
0:04:40.6]} 8... O-O {[%clk 0:04:51.9]} 9. Bg5 {[%clk 0:04:38.9]} 9... Nbd7
{[%clk 0:04:49.7]} 10. Qe2 {[%clk 0:04:31.2]} 10... c6 {[%clk 0:04:46.9]} 11. a4
{[%clk 0:04:27.9]} 11... h6 {[%clk 0:04:42.1]} 12. Bh4 {[%clk 0:04:25.7]} 12...
Qc7 {[%clk 0:04:40.5]} 13. Rfe1 {[%clk 0:04:13.6]} 13... Nd5 {[%clk 0:04:35.3]}
14. Nxg6 {[%clk 0:03:58.2]} 14... fxg6 {[%clk 0:04:25.8]} 15. Qxe6+ {[%clk
0:03:56.1]} 15... Kh7 {[%clk 0:04:23]} 16. Bxd5 {[%clk 0:03:22.7]} 16... Nf6
{[%clk 0:03:37.5]} 17. Qe5 {[%clk 0:03:03.8]} 17... Nxd5 {[%clk 0:03:32.6]} 18.
Qxc7 {[%clk 0:03:01]} 18... Nxc7 {[%clk 0:03:32]} 19. Re7 {[%clk 0:02:55.8]}
19... Nd5 {[%clk 0:03:29.8]} 20. Nxd5 {[%clk 0:02:54.1]} 20... cxd5 {[%clk
0:03:29.7]} 21. Rae1 {[%clk 0:02:50.8]} 21... Bf5 {[%clk 0:03:25.4]} 22. c3
{[%clk 0:02:47.9]} 22... g5 {[%clk 0:03:18.6]} 23. Bg3 {[%clk 0:02:46.9]} 23...
b6 {[%clk 0:02:56]} 24. h4 {[%clk 0:02:22.1]} 24... Kg6 {[%clk 0:02:52.7]} 25.
h5+ {[%clk 0:02:17.4]} 25... Kf6 {[%clk 0:02:43.4]} 26. Rc7 {[%clk 0:02:09.5]}
26... Rfe8 {[%clk 0:01:27.5]} 27. Be5+ {[%clk 0:02:07.1]} 27... Rxe5 {[%clk
0:01:24.9]} 28. dxe5+ {[%clk 0:02:06.1]} 28... Ke6 {[%clk 0:01:20]} 29. Rxg7
{[%clk 0:02:05]} 29... a6 {[%clk 0:01:10.7]} 30. Rb7 {[%clk 0:01:50.7]} 30... b5
{[%clk 0:01:06.9]} 31. Rb6+ {[%clk 0:01:48.9]} 31... Ke7 {[%clk 0:01:05.5]} 32.
axb5 {[%clk 0:01:43]} 32... axb5 {[%clk 0:01:05.4]} 33. Rxh6 {[%clk 0:01:41.9]}
33... Ra2 {[%clk 0:01:04.4]} 34. Rb6 {[%clk 0:01:35.4]} 34... Rxb2 {[%clk
0:01:03.3]} 35. Ra1 {[%clk 0:01:33.8]} 35... Rc2 {[%clk 0:00:53.9]} 36. Ra7+
{[%clk 0:01:31.6]} 36... Kd8 {[%clk 0:00:53.5]} 37. Rb8+ {[%clk 0:01:23.4]}
37... Bc8 {[%clk 0:00:53.1]} 38. h6 {[%clk 0:01:20.8]} 1-0

[Event "Live Chess"]
[Site "Chess.com"]
[Date "2023.05.21"]
[Round "-"]
[White "nigelst"]
[Black "zdanevych"]
[Result "1-0"]
[WhiteElo "1705"]
[BlackElo "1463"]
[TimeControl "300"]
[EndTime "7:59:41 PDT"]
[Termination "nigelst won by resignation"]

1. e4 {[%clk 0:04:58.8]} 1... c5 {[%clk 0:04:58.7]} 2. Nf3 {[%clk 0:04:57.4]}
2... e6 {[%clk 0:04:58.2]} 3. c3 {[%clk 0:04:55.9]} 3... d5 {[%clk 0:04:57.6]}
4. exd5 {[%clk 0:04:54.6]} 4... exd5 {[%clk 0:04:57.5]} 5. d4 {[%clk 0:04:53.3]}
5... Nf6 {[%clk 0:04:55.1]} 6. Bd3 {[%clk 0:04:51.7]} 6... h6 {[%clk 0:04:53.8]}
7. O-O {[%clk 0:04:50.2]} 7... Be6 {[%clk 0:04:53.2]} 8. dxc5 {[%clk 0:04:43.5]}
8... Bxc5 {[%clk 0:04:51.9]} 9. Nd4 {[%clk 0:04:41.9]} 9... O-O {[%clk
0:04:45.4]} 10. Nxe6 {[%clk 0:04:40.1]} 10... fxe6 {[%clk 0:04:45.3]} 11. Re1
{[%clk 0:04:32.6]} 11... Qd6 {[%clk 0:04:40.9]} 12. Qe2 {[%clk 0:04:28.8]} 12...
Re8 {[%clk 0:04:36.5]} 13. Be3 {[%clk 0:04:17.2]} 13... b6 {[%clk 0:04:30]} 14.
Nd2 {[%clk 0:04:12.8]} 14... Nc6 {[%clk 0:04:25.9]} 15. Nb3 {[%clk 0:04:04]}
15... Bxe3 {[%clk 0:04:23.9]} 16. Qxe3 {[%clk 0:04:02.1]} 16... e5 {[%clk
0:04:18.4]} 17. Bg6 {[%clk 0:03:54.7]} 17... Re7 {[%clk 0:04:11.4]} 18. Qg3
{[%clk 0:03:52.4]} 18... Rf8 {[%clk 0:04:01.8]} 19. Nd4 {[%clk 0:03:46.4]} 19...
Nxd4 {[%clk 0:03:58.9]} 20. cxd4 {[%clk 0:03:44.6]} 20... Nd7 {[%clk 0:03:42.2]}
21. dxe5 {[%clk 0:03:31.7]} 21... Rxe5 {[%clk 0:03:37.7]} 22. Bc2 {[%clk
0:03:20.9]} 22... Rxe1+ {[%clk 0:03:24.3]} 23. Rxe1 {[%clk 0:03:18.3]} 23...
Qxg3 {[%clk 0:03:24.2]} 24. hxg3 {[%clk 0:03:17]} 24... Nc5 {[%clk 0:03:22.7]}
25. Re7 {[%clk 0:03:08]} 25... Rf7 {[%clk 0:03:09.3]} 26. Re8+ {[%clk
0:02:52.4]} 26... Rf8 {[%clk 0:03:06.1]} 27. Re1 {[%clk 0:02:49.6]} 27... Kf7
{[%clk 0:03:01.9]} 28. Bb3 {[%clk 0:02:41.6]} 28... Nxb3 {[%clk 0:02:56.8]} 29.
axb3 {[%clk 0:02:39.5]} 29... Re8 {[%clk 0:02:55.1]} 30. Rd1 {[%clk 0:02:36.2]}
30... Ke6 {[%clk 0:02:53.5]} 31. f3 {[%clk 0:02:32.9]} 31... Kd6 {[%clk
0:02:52.2]} 32. Kf2 {[%clk 0:02:31.2]} 32... Re5 {[%clk 0:02:49.6]} 33. Rd4
{[%clk 0:02:25.1]} 33... Kc5 {[%clk 0:02:46.1]} 34. Rf4 {[%clk 0:02:21.5]} 34...
Re7 {[%clk 0:02:42.7]} 35. g4 {[%clk 0:02:18.9]} 35... Kd6 {[%clk 0:02:37.7]}
36. b4 {[%clk 0:02:08.1]} 36... Ke6 {[%clk 0:02:34.2]} 37. b5 {[%clk 0:02:04.4]}
37... Rf7 {[%clk 0:02:32.2]} 38. Rd4 {[%clk 0:01:59.3]} 38... g6 {[%clk
0:02:28.3]} 39. Rd2 {[%clk 0:01:55.9]} 39... Kd6 {[%clk 0:02:27.2]} 40. Rc2
{[%clk 0:01:53.5]} 40... Rc7 {[%clk 0:02:26.3]} 41. Re2 {[%clk 0:01:51.6]} 41...
Re7 {[%clk 0:02:25.6]} 42. Rd2 {[%clk 0:01:49.5]} 42... Rc7 {[%clk 0:02:25.2]}
43. f4 {[%clk 0:01:44.7]} 43... Rc5 {[%clk 0:02:23.9]} 44. Re2 {[%clk
0:01:37.8]} 44... Rxb5 {[%clk 0:02:19.9]} 45. f5 {[%clk 0:01:32.9]} 45... gxf5
{[%clk 0:02:17.3]} 46. gxf5 {[%clk 0:01:31.2]} 46... Rc5 {[%clk 0:02:11.2]} 47.
Re6+ {[%clk 0:01:13]} 47... Kd7 {[%clk 0:02:09.5]} 48. Rxh6 {[%clk 0:01:10.8]}
48... Rc6 {[%clk 0:02:00.4]} 49. Rh7+ {[%clk 0:01:09]} 49... Ke8 {[%clk
0:01:57.2]} 50. Rxa7 {[%clk 0:01:06.6]} 50... Rf6 {[%clk 0:01:56.2]} 51. g4
{[%clk 0:01:05.2]} 51... Kf8 {[%clk 0:01:52.5]} 52. Ke3 {[%clk 0:01:03.7]} 52...
Ke8 {[%clk 0:01:51.1]} 53. Kd4 {[%clk 0:01:02.4]} 53... Rd6 {[%clk 0:01:49.2]}
54. g5 {[%clk 0:00:54.7]} 54... Rc6 {[%clk 0:01:44.8]} 55. Kxd5 {[%clk
0:00:50.4]} 55... Rc5+ {[%clk 0:01:44.2]} 56. Ke6 {[%clk 0:00:47.9]} 1-0

[Event "Live Chess"]
[Site "Chess.com"]
[Date "2023.05.21"]
[Round "-"]
[White "Cimon"]
[Black "DRS44"]
[Result "1-0"]
[WhiteElo "1840"]
[BlackElo "1276"]
[TimeControl "300"]
[EndTime "7:59:45 PDT"]
[Termination "Cimon won on time"]

1. d4 {[%clk 0:04:57]} 1... d5 {[%clk 0:04:52.7]} 2. c4 {[%clk 0:04:55.8]} 2...
e5 {[%clk 0:04:49.4]} 3. dxe5 {[%clk 0:04:53.8]} 3... d4 {[%clk 0:04:45.1]} 4.
e4 {[%clk 0:04:51.1]} 4... Nc6 {[%clk 0:04:40.4]} 5. f4 {[%clk 0:04:49.4]} 5...
Bb4+ {[%clk 0:04:27.9]} 6. Bd2 {[%clk 0:04:46.9]} 6... Qe7 {[%clk 0:04:23.8]} 7.
Nf3 {[%clk 0:04:41]} 7... Bxd2+ {[%clk 0:04:15.3]} 8. Qxd2 {[%clk 0:04:37.2]}
8... f6 {[%clk 0:04:11.4]} 9. Nxd4 {[%clk 0:04:23.3]} 9... fxe5 {[%clk
0:03:57.6]} 10. Nxc6 {[%clk 0:04:21.5]} 10... bxc6 {[%clk 0:03:52.3]} 11. Nc3
{[%clk 0:04:11.6]} 11... Nf6 {[%clk 0:03:39.4]} 12. f5 {[%clk 0:04:06.6]} 12...
O-O {[%clk 0:03:31]} 13. Be2 {[%clk 0:04:04.9]} 13... h5 {[%clk 0:03:13.4]} 14.
Qe3 {[%clk 0:04:01.9]} 14... Ng4 {[%clk 0:03:08.6]} 15. Bxg4 {[%clk 0:03:59.8]}
15... hxg4 {[%clk 0:03:03.5]} 16. O-O {[%clk 0:03:56.1]} 16... Qh4 {[%clk
0:02:45.1]} 17. b3 {[%clk 0:03:49.6]} 17... Bd7 {[%clk 0:02:36.6]} 18. Rad1
{[%clk 0:03:47.1]} 18... Rad8 {[%clk 0:02:31.1]} 19. Na4 {[%clk 0:03:43.9]}
19... Bc8 {[%clk 0:02:00.2]} 20. Qg3 {[%clk 0:03:25.4]} 20... Qxg3 {[%clk
0:01:50.1]} 21. hxg3 {[%clk 0:03:15]} 21... Kf7 {[%clk 0:01:38.9]} 22. Nc5
{[%clk 0:03:11]} 22... Kf6 {[%clk 0:01:30.5]} 23. Kf2 {[%clk 0:03:06.9]} 23...
Kg5 {[%clk 0:00:31.8]} 24. Ke2 {[%clk 0:03:04.8]} 24... Bxf5 {[%clk 0:00:23.8]}
25. exf5 {[%clk 0:03:00.6]} 25... Rxd1 {[%clk 0:00:17.4]} 26. Kxd1 {[%clk
0:02:57.1]} 26... Rd8+ {[%clk 0:00:10.6]} 27. Ke2 {[%clk 0:02:52.8]} 27... Rd4
{[%clk 0:00:02.5]} 28. Ne6+ {[%clk 0:02:51.1]} 1-0

[Event "Live Chess"]
[Site "Chess.com"]
[Date "2023.05.21"]
[Round "-"]
[White "educatedlad"]
[Black "garyjc"]
[Result "1-0"]
[WhiteElo "1626"]
[BlackElo "1079"]
[TimeControl "300"]
[EndTime "8:00:05 PDT"]
[Termination "educatedlad won by resignation"]

1. Nf3 {[%clk 0:04:57.7]} 1... Nf6 {[%clk 0:04:53.4]} 2. Nc3 {[%clk 0:04:56.9]}
2... g6 {[%clk 0:04:52.6]} 3. b3 {[%clk 0:04:54.5]} 3... Bg7 {[%clk 0:04:51.9]}
4. Bb2 {[%clk 0:04:53.8]} 4... O-O {[%clk 0:04:51.2]} 5. h3 {[%clk 0:04:50.8]}
5... d6 {[%clk 0:04:50.6]} 6. g4 {[%clk 0:04:50]} 6... Be6 {[%clk 0:04:39.3]} 7.
d4 {[%clk 0:04:48.2]} 7... Nd5 {[%clk 0:04:36.4]} 8. Nxd5 {[%clk 0:04:46.2]}
8... Bxd5 {[%clk 0:04:35.5]} 9. Bg2 {[%clk 0:04:43.8]} 9... Nc6 {[%clk
0:04:29.1]} 10. c4 {[%clk 0:04:41.2]} 10... Bxf3 {[%clk 0:04:18.2]} 11. Bxf3
{[%clk 0:04:40]} 11... Nxd4 {[%clk 0:04:14.1]} 12. Bxd4 {[%clk 0:04:38.5]} 12...
Bxd4 {[%clk 0:04:12.3]} 13. Qxd4 {[%clk 0:04:37.8]} 13... c5 {[%clk 0:04:05.2]}
14. Qc3 {[%clk 0:04:34.9]} 14... Qd7 {[%clk 0:04:00.3]} 15. h4 {[%clk
0:04:32.5]} 15... f5 {[%clk 0:03:56.7]} 16. gxf5 {[%clk 0:04:30.4]} 16... Qxf5
{[%clk 0:03:54.4]} 17. h5 {[%clk 0:04:27.4]} 17... Qe6 {[%clk 0:03:43.3]} 18.
Bd5 {[%clk 0:04:25.5]} 1-0

[Event "Live Chess"]
[Site "Chess.com"]
[Date "2023.05.21"]
[Round "-"]
[White "Ian-Morley"]
[Black "jimwad"]
[Result "1-0"]
[WhiteElo "1100"]
[BlackElo "1215"]
[TimeControl "300"]
[EndTime "8:00:10 PDT"]
[Termination "Ian-Morley won by resignation"]

1. e4 {[%clk 0:04:56.1]} 1... e5 {[%clk 0:04:58.7]} 2. Nf3 {[%clk 0:04:54.7]}
2... Nc6 {[%clk 0:04:57.5]} 3. Bc4 {[%clk 0:04:53.9]} 3... Bc5 {[%clk
0:04:55.9]} 4. c3 {[%clk 0:04:50.2]} 4... Nf6 {[%clk 0:04:54.5]} 5. Ng5 {[%clk
0:04:49.3]} 5... O-O {[%clk 0:04:52.5]} 6. O-O {[%clk 0:04:47.3]} 6... h6 {[%clk
0:04:51.3]} 7. d3 {[%clk 0:04:46.9]} 7... hxg5 {[%clk 0:04:49.9]} 8. Bxg5 {[%clk
0:04:45.7]} 8... Be7 {[%clk 0:04:47.7]} 9. Bxf6 {[%clk 0:04:44.8]} 9... Bxf6
{[%clk 0:04:46.5]} 10. Qh5 {[%clk 0:04:44.4]} 10... d6 {[%clk 0:04:41.8]} 11.
Nd2 {[%clk 0:04:43.7]} 11... Ne7 {[%clk 0:04:39.5]} 12. f4 {[%clk 0:04:42.8]}
12... exf4 {[%clk 0:04:37.7]} 13. Rxf4 {[%clk 0:04:41.5]} 13... Ng6 {[%clk
0:04:36.2]} 14. Rf3 {[%clk 0:04:38.7]} 14... Be6 {[%clk 0:04:25.3]} 15. Bxe6
{[%clk 0:04:34.1]} 15... fxe6 {[%clk 0:04:24]} 16. Rh3 {[%clk 0:04:32.7]} 16...
Qe8 {[%clk 0:04:19.3]} 17. Qh7+ {[%clk 0:04:30.8]} 17... Kf7 {[%clk 0:04:18.2]}
18. Rf1 {[%clk 0:04:23]} 18... Rh8 {[%clk 0:04:09.5]} 19. Rxf6+ {[%clk
0:04:16.5]} 19... Kxf6 {[%clk 0:04:06.8]} 20. Rf3+ {[%clk 0:04:08.4]} 20... Ke7
{[%clk 0:04:01]} 21. Qxg7+ {[%clk 0:04:05.5]} 21... Kd8 {[%clk 0:03:57.2]} 22.
Qf6+ {[%clk 0:03:52.4]} 22... Ne7 {[%clk 0:03:53.9]} 23. e5 {[%clk 0:03:42]}
23... dxe5 {[%clk 0:03:51.9]} 24. Qxe6 {[%clk 0:03:31.8]} 24... Qh5 {[%clk
0:03:44.5]} 25. h3 {[%clk 0:03:25.9]} 25... Qg6 {[%clk 0:03:16.2]} 26. Qc4
{[%clk 0:02:45.9]} 26... Rg8 {[%clk 0:03:07.4]} 27. g3 {[%clk 0:02:41.2]} 27...
Qb6+ {[%clk 0:03:04.3]} 28. Kg2 {[%clk 0:02:35.8]} 28... Qc6 {[%clk 0:02:53.2]}
29. Qh4 {[%clk 0:02:26.5]} 29... Rf8 {[%clk 0:02:37.4]} 30. Ne4 {[%clk
0:02:20.3]} 30... Rxf3 {[%clk 0:02:34.4]} 31. Kxf3 {[%clk 0:02:18.1]} 31... Kd7
{[%clk 0:02:30.7]} 32. Ke3 {[%clk 0:02:10]} 32... Re8 {[%clk 0:02:21.7]} 33.
Nf6+ {[%clk 0:02:08.7]} 33... Kd8 {[%clk 0:02:17.3]} 34. Nxe8 {[%clk 0:02:05.6]}
34... Qxe8 {[%clk 0:02:15.9]} 35. Qe4 {[%clk 0:02:00.6]} 35... Kc8 {[%clk
0:02:11.4]} 36. Qxe5 {[%clk 0:01:52.3]} 36... Nc6 {[%clk 0:02:08.8]} 37. Qxe8+
{[%clk 0:01:50.2]} 1-0

[Event "Live Chess"]
[Site "Chess.com"]
[Date "2023.05.21"]
[Round "-"]
[White "SupremeTactician"]
[Black "NatashaRegan"]
[Result "1-0"]
[WhiteElo "2209"]
[BlackElo "1709"]
[TimeControl "300"]
[EndTime "8:00:11 PDT"]
[Termination "SupremeTactician won by resignation"]

1. e4 {[%clk 0:04:58.2]} 1... Nf6 {[%clk 0:04:56.4]} 2. e5 {[%clk 0:04:57]} 2...
Nd5 {[%clk 0:04:55.4]} 3. d4 {[%clk 0:04:56.8]} 3... d6 {[%clk 0:04:54.6]} 4.
Nf3 {[%clk 0:04:54.8]} 4... dxe5 {[%clk 0:04:50.5]} 5. Nxe5 {[%clk 0:04:52.8]}
5... c6 {[%clk 0:04:48]} 6. c4 {[%clk 0:04:41.1]} 6... Nb4 {[%clk 0:04:41.7]} 7.
Be3 {[%clk 0:04:40.3]} 7... Bf5 {[%clk 0:04:38]} 8. Nd3 {[%clk 0:04:36.3]} 8...
e5 {[%clk 0:04:24.9]} 9. Nxb4 {[%clk 0:04:32.8]} 9... Bxb4+ {[%clk 0:04:20.6]}
10. Nc3 {[%clk 0:04:32.4]} 10... exd4 {[%clk 0:04:13.3]} 11. Qxd4 {[%clk
0:04:29.7]} 11... Qxd4 {[%clk 0:04:02.7]} 12. Bxd4 {[%clk 0:04:29]} 12... O-O
{[%clk 0:04:01.5]} 13. Be2 {[%clk 0:04:27.8]} 13... Nd7 {[%clk 0:03:58.6]} 14.
O-O {[%clk 0:04:27]} 14... c5 {[%clk 0:03:48]} 15. Be3 {[%clk 0:04:25.1]} 15...
Bxc3 {[%clk 0:03:46]} 16. bxc3 {[%clk 0:04:25]} 16... b6 {[%clk 0:03:44.4]} 17.
Rad1 {[%clk 0:04:23.7]} 17... Rad8 {[%clk 0:03:38.9]} 18. Bf4 {[%clk 0:04:21.8]}
18... Nf6 {[%clk 0:03:35.2]} 19. Bf3 {[%clk 0:04:19]} 19... Be4 {[%clk
0:03:32.1]} 20. Be2 {[%clk 0:04:12.6]} 20... h6 {[%clk 0:03:25.8]} 21. Be5
{[%clk 0:04:11.1]} 21... Nd7 {[%clk 0:03:19.1]} 22. Bc7 {[%clk 0:04:07.6]} 22...
Rde8 {[%clk 0:03:02.9]} 23. Rxd7 {[%clk 0:04:04.4]} 23... Bxg2 {[%clk
0:02:55.7]} 24. Kxg2 {[%clk 0:04:01.7]} 24... Rxe2 {[%clk 0:02:54.5]} 25. Rfd1
{[%clk 0:03:57]} 25... Rxa2 {[%clk 0:02:51.2]} 26. Bd6 {[%clk 0:03:54.1]} 26...
Re8 {[%clk 0:02:48.1]} 27. Bg3 {[%clk 0:03:47.9]} 27... Kf8 {[%clk 0:02:36.9]}
28. Rb7 {[%clk 0:03:45.5]} 28... Re7 {[%clk 0:02:21.4]} 29. Bd6 {[%clk
0:03:25.5]} 1-0

[Event "Live Chess"]
[Site "Chess.com"]
[Date "2023.05.21"]
[Round "-"]
[White "mach247"]
[Black "viktorskliarov"]
[Result "0-1"]
[WhiteElo "1330"]
[BlackElo "2646"]
[TimeControl "300"]
[EndTime "8:00:34 PDT"]
[Termination "viktorskliarov won on time"]

1. e4 {[%clk 0:04:59.4]} 1... c5 {[%clk 0:04:58]} 2. Nf3 {[%clk 0:04:58.5]} 2...
Nc6 {[%clk 0:04:54.2]} 3. d4 {[%clk 0:04:57.7]} 3... cxd4 {[%clk 0:04:53.6]} 4.
Nxd4 {[%clk 0:04:57.2]} 4... g6 {[%clk 0:04:53.2]} 5. Nxc6 {[%clk 0:04:56.1]}
5... bxc6 {[%clk 0:04:51.7]} 6. Nc3 {[%clk 0:04:55.2]} 6... Bg7 {[%clk 0:04:51]}
7. Bc4 {[%clk 0:04:50.2]} 7... d6 {[%clk 0:04:46.2]} 8. O-O {[%clk 0:04:48.5]}
8... Nf6 {[%clk 0:04:45]} 9. Be3 {[%clk 0:04:37.5]} 9... O-O {[%clk 0:04:43.4]}
10. Qd2 {[%clk 0:04:37]} 10... Ng4 {[%clk 0:04:41.3]} 11. Bf4 {[%clk 0:04:27.5]}
11... Ne5 {[%clk 0:04:33.1]} 12. Bb3 {[%clk 0:04:16.5]} 12... Ba6 {[%clk
0:04:30.9]} 13. Rfe1 {[%clk 0:04:12.3]} 13... Rb8 {[%clk 0:04:24.7]} 14. Bh6
{[%clk 0:04:10.5]} 14... Qb6 {[%clk 0:03:40.7]} 15. Bxg7 {[%clk 0:04:08.6]}
15... Kxg7 {[%clk 0:03:39.7]} 16. Qe3 {[%clk 0:03:31.9]} 16... Qxe3 {[%clk
0:03:31.4]} 17. Rxe3 {[%clk 0:03:31.8]} 17... Nc4 {[%clk 0:03:30.8]} 18. Bxc4
{[%clk 0:03:28.1]} 18... Bxc4 {[%clk 0:03:30.7]} 19. b3 {[%clk 0:03:27.7]} 19...
Be6 {[%clk 0:03:29.2]} 20. Ne2 {[%clk 0:03:14]} 20... c5 {[%clk 0:03:03.9]} 21.
c4 {[%clk 0:03:12.6]} 21... a5 {[%clk 0:02:56.1]} 22. Nf4 {[%clk 0:03:09.1]}
22... a4 {[%clk 0:02:46.7]} 23. Nxe6+ {[%clk 0:02:59.5]} 23... fxe6 {[%clk
0:02:45.5]} 24. Rd1 {[%clk 0:02:30.5]} 24... e5 {[%clk 0:02:31.3]} 25. bxa4
{[%clk 0:02:11.1]} 25... Rb4 {[%clk 0:02:28.2]} 26. Rb3 {[%clk 0:02:09.5]} 26...
Rxa4 {[%clk 0:02:21.2]} 27. Rb7 {[%clk 0:02:05.1]} 27... Kf6 {[%clk 0:02:18.6]}
28. f4 {[%clk 0:01:49]} 28... exf4 {[%clk 0:01:52.8]} 29. Kf2 {[%clk 0:01:31.4]}
29... Rxa2+ {[%clk 0:01:49.6]} 30. Kf3 {[%clk 0:01:31]} 30... Ke6 {[%clk
0:01:49]} 31. h4 {[%clk 0:01:09.1]} 31... h5 {[%clk 0:01:46.6]} 32. Rd5 {[%clk
0:01:00.1]} 32... Ra3+ {[%clk 0:01:38.3]} 33. Kf2 {[%clk 0:00:58.5]} 33... f3
{[%clk 0:01:37.6]} 34. gxf3 {[%clk 0:00:55.3]} 34... Rfxf3+ {[%clk 0:01:36.4]}
35. Kg2 {[%clk 0:00:51.9]} 35... Rg3+ {[%clk 0:01:35.3]} 36. Kf2 {[%clk
0:00:49.8]} 36... Rgb3 {[%clk 0:01:31.2]} 37. Rxb3 {[%clk 0:00:39.4]} 37... Rxb3
{[%clk 0:01:29.9]} 38. Rg5 {[%clk 0:00:37.9]} 38... Kf6 {[%clk 0:01:28.7]} 39.
Rd5 {[%clk 0:00:32.2]} 39... Rh3 {[%clk 0:01:27.1]} 40. e5+ {[%clk 0:00:25.8]}
40... dxe5 {[%clk 0:01:24.8]} 41. Rxc5 {[%clk 0:00:25]} 41... Rxh4 {[%clk
0:01:24.2]} 42. Rc6+ {[%clk 0:00:19.1]} 42... Kf5 {[%clk 0:01:23.5]} 43. Rc7
{[%clk 0:00:17.5]} 43... Rh2+ {[%clk 0:01:13.5]} 44. Kg3 {[%clk 0:00:15.8]}
44... Rc2 {[%clk 0:01:12.1]} 45. Rxe7 {[%clk 0:00:13.4]} 45... Rxc4 {[%clk
0:01:10.5]} 46. Rf7+ {[%clk 0:00:13.1]} 46... Kg5 {[%clk 0:01:09.7]} 47. Re7
{[%clk 0:00:10.8]} 47... Rc3+ {[%clk 0:01:08.6]} 48. Kf2 {[%clk 0:00:09.3]}
48... Kf4 {[%clk 0:01:07.7]} 49. Ke2 {[%clk 0:00:07.1]} 49... h4 {[%clk
0:01:05.8]} 50. Rf7+ {[%clk 0:00:06.1]} 50... Kg4 {[%clk 0:01:05.1]} 51. Rf6
{[%clk 0:00:03.8]} 51... g5 {[%clk 0:01:04.3]} 52. Re6 {[%clk 0:00:02.4]} 52...
Rc5 {[%clk 0:01:03.2]} 0-1